bitfinex/quotes_SOLUSD_20240811
["timestamp","ask_amount","ask_price","bid_price","bid_amount"]
[1723368526345,15.2279,157.49,157.41,21.27046609]
[1723368526542,15.2279,157.49,157.42,0.12549]
[1723368526748,15.2279,157.49,157.41,21.39595609]
[1723368526933,15.2279,157.49,157.41,21.39591595]
[1723368527135,15.2279,157.49,157.42,0.12549]
[1723368528751,15.2279,157.49,157.42,45.37647]
[1723368529056,15.2279,157.49,157.43,20.0]
[1723368533463,15.2279,157.49,157.44,0.12549]
[1723368533673,15.2279,157.49,157.44,0.25098]
[1723368534471,15.2279,157.49,157.44,21.94098]
[1723368534846,15.2279,157.49,157.45,20.0]
[1723368535777,15.2279,157.49,157.43,20.0]
[1723368536175,15.2279,157.49,157.41,20.12549]
[1723368536368,21.5775,157.49,157.41,20.0]
[1723368536857,15.2279,157.49,157.41,20.0]
[1723368537567,15.2279,157.49,157.42,21.69]
[1723368537778,15.2279,157.49,157.43,20.0]
[1723368538488,15.2279,157.49,157.41,20.0]
[1723368539281,21.5776,157.49,157.41,20.0]
[1723368539779,15.2279,157.49,157.41,20.0]
[1723368542378,21.69,157.48,157.38,21.69]
[1723368542684,21.69,157.48,157.39,0.25098]
[1723368543188,21.5954,157.47,157.39,0.12549]
[1723368543359,21.5954,157.47,157.4,21.81549]
[1723368543667,21.5954,157.47,157.41,0.25098]
[1723368544196,21.5954,157.47,157.41,20.0]
[1723368544560,21.5954,157.47,157.39,20.12549]
[1723368545178,21.5954,157.47,157.4,0.12549]
[1723368545386,21.5954,157.47,157.4,0.25098]
[1723368545583,21.5954,157.47,157.39,20.0]
[1723368545882,21.69,157.46,157.37,0.12549]
[1723368546081,22.66439657,157.46,157.37,0.37647]
[1723368547075,21.5954,157.47,157.38,21.81549]
[1723368547276,21.5954,157.47,157.39,20.0]
[1723368550185,21.5954,157.47,157.4,21.94098]
[1723368550370,21.5954,157.47,157.41,20.0]
[1723368551987,27.9458,157.47,157.41,20.0]
[1723368552199,22.66439657,157.46,157.37,20.0]
[1723368552369,29.01519657,157.46,157.37,20.0]
[1723368552775,29.01519657,157.46,157.31,4.37201949]
[1723368552776,15.4692,157.45,157.31,4.37201949]
[1723368553092,0.97439657,157.44,157.31,4.37201949]
[1723368553260,15.4692,157.45,157.32,12.06555064]
[1723368553465,0.97439657,157.44,157.32,10.79478938]
[1723368553666,15.4692,157.45,157.35,21.69]
[1723368553876,16.44359657,157.45,157.35,21.69]
[1723368554288,16.44359657,157.45,157.36,20.0]
[1723368554798,15.4692,157.45,157.37,0.25098]
[1723368554982,16.44359657,157.45,157.37,0.25098]
[1723368555170,15.4692,157.45,157.37,0.25098]
[1723368555779,0.97439657,157.44,157.41,21.69]
[1723368555980,21.5954,157.5,157.44,0.12549]
[1723368556183,21.5954,157.5,157.44,0.50196]
[1723368556371,21.5954,157.5,157.44,20.37647]
[1723368556690,21.5954,157.5,157.44,20.25098]
[1723368557661,21.5954,157.5,157.44,20.0]
[1723368557866,21.5954,157.5,157.43,20.12549]
[1723368558101,21.5954,157.5,157.42,66.81549]
[1723368558392,21.5954,157.5,157.42,21.69]
[1723368559365,21.5954,157.5,157.4,21.69]
[1723368559594,21.5954,157.5,157.41,0.25098]
[1723368560280,21.5954,157.5,157.42,21.81549]
[1723368560475,21.5954,157.5,157.43,0.25098]
[1723368562088,0.97439657,157.49,157.43,0.25098]
[1723368562670,0.97439657,157.49,157.42,21.81549]
[1723368562876,21.5954,157.5,157.42,21.69]
[1723368565989,21.5954,157.5,157.43,0.12549]
[1723368566191,21.5954,157.5,157.43,0.50196]
[1723368566596,0.97439657,157.49,157.43,0.50196]
[1723368566907,21.5954,157.5,157.44,0.12549]
[1723368567203,21.5954,157.5,157.44,0.25098]
[1723368567398,21.5954,157.5,157.43,0.12549]
[1723368567707,21.5954,157.5,157.43,45.50196]
[1723368569280,21.5954,157.5,157.46,21.69]
[1723368569609,21.5954,157.5,157.47,0.37647]
[1723368569779,21.5954,157.5,157.47,0.50196]
[1723368570282,21.5954,157.5,157.46,21.69]
[1723368570713,21.5954,157.5,157.47,0.25098]
[1723368570996,21.5954,157.5,157.47,0.37647]
[1723368572309,15.4692,157.5,157.49,0.12549]
[1723368572506,15.4692,157.5,157.49,20.37647]
[1723368572711,15.4692,157.5,157.48,21.69]
[1723368575298,15.4692,157.5,157.46,21.81549]
[1723368575508,15.4692,157.5,157.38,7.9814]
[1723368575509,15.4692,157.5,157.42,21.69]
[1723368576115,15.4692,157.5,157.43,21.69]
[1723368577813,6.0171,157.49,157.43,21.69]
[1723368578224,6.0171,157.49,157.44,20.0]
[1723368580126,6.0171,157.49,157.45,21.94098]
[1723368580331,15.4692,157.5,157.47,21.69]
[1723368580512,15.4692,157.5,157.48,0.12549]
[1723368580832,15.4692,157.5,157.48,1.52083069]
[1723368581204,15.4692,157.5,157.48,21.52083069]
[1723368581718,15.4692,157.5,157.49,21.81549]
[1723368581924,15.4692,157.5,157.49,41.94098]
[1723368582120,6.0171,157.53,157.49,41.94098]
[1723368582729,6.0171,157.53,157.5,0.25098]
[1723368582920,6.0171,157.53,157.5,0.37647]
[1723368583223,6.0171,157.53,157.51,21.69]
[1723368585130,15.628,157.54,157.51,21.69]
[1723368585533,15.628,157.54,157.52,0.12549]
[1723368585826,15.628,157.54,157.52,0.50196]
[1723368586413,15.628,157.54,157.52,1.77146056]
[1723368587331,6.2199,157.57,157.52,45.50196]
[1723368587636,6.2199,157.57,157.54,0.12549]
[1723368587843,6.2199,157.57,157.54,1.77127717]
[1723368588008,15.628,157.58,157.54,1.77127717]
[1723368588429,15.628,157.58,157.54,46.77127717]
[1723368590340,15.628,157.58,157.54,45.50196]
[1723368591236,6.2199,157.61,157.57,21.69]
[1723368592828,6.2199,157.61,157.58,0.25098]
[1723368594307,6.2199,157.61,157.57,0.12549]
[1723368594644,6.2199,157.61,157.57,0.37647]
[1723368594936,6.2199,157.61,157.57,20.37647]
[1723368596034,6.2199,157.61,157.57,42.06647]
[1723368596534,15.628,157.62,157.59,21.69]
[1723368596737,15.628,157.62,157.6,0.25098]
[1723368597235,15.628,157.62,157.59,21.69]
[1723368597736,15.628,157.62,157.59,10.83]
[1723368598840,15.628,157.62,157.57,30.83]
[1723368599220,10.83,157.59,157.5,17.7154148]
[1723368599419,11.80439657,157.59,157.48,1.8297]
[1723368599619,10.83,157.59,157.52,10.83]
[1723368600819,0.97439657,157.58,157.52,10.83]
[1723368601026,15.628,157.57,157.5,10.83]
[1723368601228,15.628,157.57,157.52,10.83]
[1723368601649,15.628,157.57,157.54,10.83]
[1723368601858,15.628,157.57,157.53,22.94936377]
[1723368602144,22.8296,157.61,157.55,21.68]
[1723368602354,22.8296,157.61,157.56,20.0]
[1723368603753,22.8296,157.61,157.57,22.18196]
[1723368603919,22.8296,157.61,157.59,0.12549]
[1723368604119,22.8296,157.61,157.59,0.25098]
[1723368604520,16.6097,157.61,157.59,0.25098]
[1723368605125,22.7347,157.65,157.59,21.93098]
[1723368605326,22.7347,157.65,157.61,21.80549]
[1723368605531,22.7347,157.65,157.62,20.0]
[1723368606637,16.6097,157.65,157.63,21.93098]
[1723368606829,16.6097,157.65,157.63,23.19963317]
[1723368607149,22.7347,157.69,157.63,21.93098]
[1723368607454,22.7347,157.69,157.64,0.12549]
[1723368608046,22.7347,157.69,157.63,0.25098]
[1723368608243,22.7347,157.69,157.63,20.25098]
[1723368609127,21.68,157.68,157.58,21.68]
[1723368609328,23.70909657,157.69,157.58,21.68]
[1723368609641,22.7347,157.69,157.6,21.68]
[1723368610034,22.7347,157.69,157.62,21.68]
[1723368610558,22.7347,157.69,157.63,0.12549]
[1723368610871,22.7347,157.69,157.63,0.25098]
[1723368611463,0.97439657,157.68,157.6,21.68]
[1723368611645,22.7347,157.69,157.61,20.0]
[1723368612564,22.7347,157.69,157.62,21.80549]
[1723368612770,22.7347,157.69,157.63,65.37647]
[1723368612944,22.7347,157.69,157.64,21.93098]
[1723368613847,22.7347,157.69,157.65,1.39400159]
[1723368614049,22.7347,157.69,157.66,0.25098]
[1723368618864,16.6097,157.69,157.67,0.12549]
[1723368619069,16.6097,157.69,157.68,0.12549]
[1723368619276,16.6097,157.69,157.68,0.25098]
[1723368620256,16.6097,157.69,157.68,0.37647]
[1723368620564,16.6097,157.69,157.68,0.50196]
[1723368621372,16.6097,157.69,157.68,0.25098]
[1723368621950,16.6097,157.69,157.67,20.0]
[1723368622164,16.6097,157.69,157.65,20.0]
[1723368622367,16.6097,157.69,157.64,21.68]
[1723368622546,16.6097,157.69,157.66,21.68]
[1723368623567,16.6097,157.69,157.67,0.25098]
[1723368623777,16.6097,157.69,157.68,0.37647]
[1723368624075,16.6097,157.69,157.68,0.50196]
[1723368624262,16.6097,157.69,157.68,0.12549]
[1723368624459,22.0895,157.73,157.67,20.50196]
[1723368627451,43.7695,157.73,157.67,20.0]
[1723368627665,43.7695,157.73,157.64,21.68]
[1723368628680,43.7695,157.73,157.65,0.25098]
[1723368628864,44.74389657,157.73,157.65,20.25098]
[1723368629264,23.06389657,157.73,157.65,20.25098]
[1723368629573,22.0895,157.73,157.67,0.12549]
[1723368629781,22.0895,157.73,157.67,20.25098]
[1723368630280,22.0895,157.73,157.68,0.25098]
[1723368632759,22.0895,157.73,157.69,0.25098]
[1723368634292,15.9645,157.73,157.71,0.12549]
[1723368634583,15.9645,157.73,157.72,21.68]
[1723368634784,15.9645,157.73,157.72,42.05647]
[1723368635081,6.2461,157.77,157.73,0.12549]
[1723368635285,6.2461,157.77,157.74,21.68]
[1723368635456,6.2461,157.77,157.75,21.2676976]
[1723368635971,6.2461,157.77,157.75,20.0]
[1723368636174,6.2461,157.77,157.73,20.0]
[1723368638868,15.9645,157.78,157.74,23.44970816]
[1723368639057,15.9645,157.78,157.76,21.80549]
[1723368639257,15.9645,157.78,157.77,20.12549]
[1723368639484,15.9645,157.78,157.77,20.25098]
[1723368639657,6.2461,157.81,157.77,20.12549]
[1723368642085,22.523774,157.86,157.77,20.12549]
[1723368642086,0.843774,157.86,157.8,21.68]
[1723368642300,0.843774,157.86,157.81,45.25098]
[1723368642456,0.843774,157.86,157.83,0.12549]
[1723368642789,0.843774,157.86,157.83,65.25098]
[1723368642965,0.843774,157.86,157.84,0.25098]
[1723368644377,0.843774,157.86,157.84,0.12549]
[1723368644700,0.843774,157.86,157.84,21.80549]
[1723368645559,0.843774,157.86,157.84,0.12549]
[1723368645780,0.843774,157.86,157.83,20.12549]
[1723368648091,0.843774,157.86,157.83,20.0]
[1723368648296,0.843774,157.86,157.82,21.68]
[1723368650786,0.843774,157.86,157.83,45.50196]
[1723368650986,0.843774,157.86,157.83,0.50196]
[1723368651183,0.843774,157.86,157.82,21.68]
[1723368651987,0.843774,157.86,157.76,22.94707805]
[1723368651988,0.843774,157.86,157.8,21.68]
[1723368652190,0.843774,157.86,157.78,21.68]
[1723368652491,0.843774,157.86,157.79,20.0]
[1723368652691,0.843774,157.86,157.8,21.68]
[1723368652868,0.843774,157.86,157.81,20.0]
[1723368654873,0.843774,157.86,157.82,67.18196]
[1723368655276,0.843774,157.86,157.83,20.0]
[1723368655484,0.843774,157.86,157.84,0.50196]
[1723368655992,0.843774,157.86,157.83,20.0]
[1723368657295,0.843774,157.86,157.84,0.25098]
[1723368659277,0.843774,157.86,157.85,0.37647]
[1723368659591,0.843774,157.86,157.85,0.50196]
[1723368660177,0.843774,157.86,157.85,0.25098]
[1723368660381,0.843774,157.86,157.84,0.25098]
[1723368661699,0.843774,157.86,157.84,11.05098]
[1723368662199,0.843774,157.86,157.83,20.25098]
[1723368663305,0.843774,157.86,157.84,10.8]
[1723368666823,0.843774,157.86,157.83,20.0]
[1723368667289,0.97439657,157.85,157.83,20.0]
[1723368667596,0.843774,157.86,157.81,20.0]
[1723368668102,11.643774,157.86,157.81,20.0]
[1723368668394,11.643774,157.86,157.74,6.5161]
[1723368668395,6.5679,157.85,157.78,10.8]
[1723368669490,6.5679,157.85,157.79,20.0]
[1723368670386,6.5679,157.85,157.73,9.83539097]
[1723368670387,10.8,157.84,157.73,9.83539097]
[1723368670594,0.97439657,157.83,157.77,10.8]
[1723368670803,15.6801,157.82,157.77,10.8]
[1723368671191,15.6801,157.82,157.73,9.83539097]
[1723368671397,15.6801,157.82,157.79,10.8]
[1723368671777,15.6801,157.82,157.77,10.8]
[1723368671978,15.6801,157.82,157.78,20.0]
[1723368672579,15.6801,157.82,157.78,30.8]
[1723368672992,15.6801,157.82,157.81,10.8]
[1723368673196,6.5679,157.85,157.81,31.05098]
[1723368673389,6.5679,157.85,157.83,10.8]
[1723368673791,6.5679,157.85,157.82,0.12549]
[1723368673991,6.5679,157.85,157.82,20.0]
[1723368674602,6.5679,157.85,157.78,20.0]
[1723368674808,6.5679,157.85,157.76,21.6]
[1723368675105,6.5679,157.85,157.77,20.0]
[1723368675711,7.54229657,157.85,157.77,20.0]
[1723368675915,6.5679,157.85,157.77,20.0]
[1723368679511,6.5679,157.85,157.76,21.6]
[1723368679512,16.65449657,157.84,157.76,21.6]
[1723368679998,15.6801,157.84,157.76,21.6]
[1723368680701,15.6801,157.84,157.77,20.0]
[1723368685828,16.65449657,157.84,157.77,20.0]
[1723368686029,15.6801,157.84,157.77,20.0]
[1723368686721,0.97439657,157.83,157.77,20.0]
[1723368687027,15.6801,157.84,157.77,20.0]
[1723368695329,15.6801,157.84,157.82,21.6]
[1723368695532,0.843774,157.86,157.82,21.6]
[1723368695745,0.843774,157.86,157.83,30.8]
[1723368698034,0.843774,157.86,157.83,20.0]
[1723368699631,0.843774,157.86,157.84,10.8]
[1723368700237,0.843774,157.86,157.85,10.8]
[1723368701311,0.843774,157.86,157.85,30.8]
[1723368701531,0.843774,157.86,157.85,20.0]
[1723368704222,0.843774,157.86,157.84,10.8]
[1723368706324,0.843774,157.86,157.85,10.8]
[1723368706640,0.843774,157.86,157.85,30.8]
[1723368706846,0.843774,157.86,157.85,31.05098]
[1723368707938,0.843774,157.86,157.85,31.30196]
[1723368708124,0.843774,157.86,157.85,32.56870366]
[1723368709349,0.843774,157.86,157.85,31.30196]
[1723368709922,15.9027,157.92,157.85,31.30196]
[1723368710123,11.02939667,158.07,157.85,31.30196]
[1723368710124,15.9027,157.98,157.91,10.8]
[1723368710342,15.9027,157.98,157.92,10.8]
[1723368710533,26.7027,157.98,157.9,10.8]
[1723368710729,26.7027,157.98,157.86,29.96088097]
[1723368710730,10.8,157.94,157.86,29.96088097]
[1723368710925,10.8,157.91,157.86,20.0]
[1723368711421,11.77439657,157.91,157.85,20.0]
[1723368712135,22.4288,157.93,157.85,30.8]
[1723368712334,22.4288,157.93,157.87,10.8]
[1723368712646,33.2288,157.93,157.86,10.8]
[1723368713035,22.4288,157.93,157.87,10.8]
[1723368713221,22.4288,157.93,157.88,10.8]
[1723368713617,22.4288,157.93,157.89,10.8]
[1723368713856,22.4288,157.93,157.9,10.8]
[1723368714027,22.4288,157.93,157.88,0.25098]
[1723368714225,22.4288,157.93,157.9,10.8]
[1723368714447,22.4288,157.93,157.88,10.92549]
[1723368714752,22.4288,157.93,157.89,20.0]
[1723368715349,15.9027,157.97,157.91,10.8]
[1723368715551,15.9027,157.97,157.9,0.12549]
[1723368715552,15.9027,157.97,157.92,30.8]
[1723368715730,15.9027,157.97,157.93,20.0]
[1723368716427,15.9027,157.97,157.92,20.0]
[1723368718537,15.9027,157.97,157.93,21.57]
[1723368718759,15.9027,157.97,157.94,20.0]
[1723368719654,6.5261,157.98,157.94,20.0]
[1723368719655,15.9027,158.01,157.95,21.57]
[1723368719852,15.9027,158.01,157.95,22.83607072]
[1723368720057,15.9027,158.01,157.95,21.57]
[1723368720859,15.9027,158.01,157.96,20.0]
[1723368721235,0.97439657,158.0,157.96,20.0]
[1723368721557,16.87709657,158.01,157.96,20.0]
[1723368721730,15.9027,158.01,157.94,20.0]
[1723368722528,15.9027,158.01,157.91,21.57]
[1723368722747,15.9027,158.01,157.89,21.57]
[1723368722748,72.8992,158.0,157.89,21.57]
[1723368723059,66.57,158.0,157.89,21.57]
[1723368723761,66.57,158.0,157.85,3.09612266]
[1723368724055,66.57,158.0,157.89,21.57]
[1723368724261,21.57,157.98,157.9,20.0]
[1723368724562,0.97439657,157.97,157.9,20.0]
[1723368724733,0.97439657,157.97,157.88,20.0]
[1723368725463,22.1647,157.99,157.91,21.57]
[1723368725634,22.1647,157.99,157.92,20.0]
[1723368727239,22.1647,157.99,157.9,20.0]
[1723368727438,15.5474,157.95,157.84,9.18539097]
[1723368727748,6.6173,157.93,157.85,21.57]
[1723368728060,15.5474,157.91,157.83,21.57]
[1723368728278,0.97439657,157.9,157.81,21.57]
[1723368728573,22.54439657,157.9,157.81,21.57]
[1723368728783,21.57,157.88,157.78,21.57]
[1723368729068,15.5474,157.87,157.74,12.94656272]
[1723368729389,21.57,157.86,157.77,21.57]
[1723368729545,6.6173,157.84,157.75,21.57]
[1723368729736,0.97439657,157.83,157.75,21.57]
[1723368729936,6.6173,157.84,157.75,21.57]
[1723368730134,16.52179657,157.83,157.71,8.67441875]
[1723368730438,15.5474,157.83,157.76,21.57]
[1723368731164,15.5474,157.83,157.78,21.57]
[1723368731961,15.5474,157.83,157.79,20.0]
[1723368732742,15.5474,157.83,157.82,21.57]
[1723368732946,15.5474,157.83,157.82,41.57]
[1723368733374,15.5474,157.83,157.82,20.0]
[1723368733744,15.5474,157.83,157.81,20.0]
[1723368734646,15.5474,157.87,157.82,21.57]
[1723368734846,15.5474,157.87,157.83,20.0]
[1723368735145,15.5474,157.87,157.84,21.57]
[1723368735452,15.5474,157.87,157.83,20.0]
[1723368739274,0.97439657,157.86,157.83,20.0]
[1723368739471,16.52179657,157.87,157.81,20.0]
[1723368739652,15.5474,157.87,157.81,20.0]
[1723368740063,15.5474,157.87,157.8,21.57]
[1723368740261,45.0,157.86,157.78,21.57]
[1723368740445,15.5474,157.87,157.78,21.57]
[1723368740949,45.0,157.86,157.78,21.57]
[1723368741467,15.5474,157.87,157.78,21.57]
[1723368742153,15.5474,157.87,157.79,20.0]
[1723368742353,45.0,157.86,157.79,20.0]
[1723368742756,66.57,157.86,157.77,20.0]
[1723368742951,0.97439657,157.85,157.77,20.0]
[1723368743750,67.54439657,157.86,157.77,20.0]
[1723368743959,66.57,157.86,157.77,20.0]
[1723368745348,0.12549,157.85,157.77,20.0]
[1723368745555,66.57,157.86,157.77,20.0]
[1723368746488,1.09988657,157.85,157.77,20.0]
[1723368746658,43.17619,157.84,157.73,21.57]
[1723368746852,45.97439657,157.83,157.73,21.57]
[1723368747174,0.97439657,157.82,157.73,21.57]
[1723368747356,15.3805,157.81,157.71,21.57]
[1723368747559,22.54439657,157.8,157.67,25.5135582]
[1723368747787,6.1002,157.79,157.7,21.57]
[1723368747958,0.97439657,157.78,157.7,21.57]
[1723368748366,22.54439657,157.78,157.68,21.57]
[1723368749092,21.57,157.78,157.68,21.57]
[1723368749454,15.3805,157.77,157.68,21.57]
[1723368750194,15.3805,157.77,157.72,21.57]
[1723368750653,15.3805,157.77,157.73,20.0]
[1723368751659,15.3805,157.77,157.69,20.0]
[1723368751956,0.97439657,157.76,157.69,20.0]
[1723368752855,15.3805,157.77,157.69,20.0]
[1723368753255,15.3805,157.77,157.68,21.57]
[1723368753465,15.3805,157.77,157.69,20.0]
[1723368754286,0.97439657,157.76,157.69,20.0]
[1723368754494,6.1002,157.75,157.64,21.57]
[1723368754698,15.3805,157.73,157.64,21.57]
[1723368754990,0.97439657,157.72,157.62,21.57]
[1723368755402,67.54439657,157.72,157.62,21.57]
[1723368756201,15.3805,157.69,157.6,21.57]
[1723368756487,0.97439657,157.68,157.6,21.57]
[1723368756663,0.97439657,157.67,157.6,21.57]
[1723368757064,15.3805,157.69,157.6,21.57]
[1723368757495,67.54439657,157.68,157.54,8.67441875]
[1723368757796,21.4807,157.67,157.58,21.57]
[1723368758169,21.4807,157.67,157.6,21.57]
[1723368758978,21.4807,157.67,157.58,21.57]
[1723368759290,21.4807,157.67,157.59,0.25098]
[1723368759500,21.4807,157.67,157.58,21.57]
[1723368759792,21.4807,157.67,157.59,20.0]
[1723368760902,45.0,157.66,157.56,21.57]
[1723368761191,45.0,157.66,157.52,31.51021743]
[1723368761192,22.66988657,157.65,157.54,21.57]
[1723368761492,21.57,157.63,157.48,8.67441875]
[1723368761671,21.57,157.63,157.52,21.57]
[1723368762072,6.3109,157.62,157.52,21.57]
[1723368762294,6.3109,157.62,157.54,21.57]
[1723368762680,6.3109,157.62,157.49,9.94226169]
[1723368763297,38.27229657,157.61,157.49,9.94226169]
[1723368763597,0.97439657,157.6,157.5,21.57]
[1723368764290,37.2979,157.61,157.5,21.57]
[1723368764795,37.2979,157.61,157.49,9.94226169]
[1723368764796,37.2979,157.61,157.52,21.57]
[1723368764996,37.2979,157.61,157.53,20.0]
[1723368766390,15.7279,157.61,157.53,20.0]
[1723368767395,45.25098,157.6,157.53,20.0]
[1723368767569,21.57,157.59,157.51,20.0]
[1723368767887,37.2979,157.61,157.51,21.26970959]
[1723368768195,15.7279,157.61,157.52,21.57]
[1723368768392,15.7279,157.61,157.53,20.0]
[1723368768813,15.7279,157.61,157.54,21.57]
[1723368769177,16.70229657,157.61,157.53,20.0]
[1723368770080,15.7279,157.61,157.53,20.0]
[1723368770697,15.7279,157.61,157.47,0.843774]
[1723368770698,21.69549,157.6,157.47,0.843774]
[1723368770899,0.12549,157.59,157.49,21.57]
[1723368771399,21.57,157.58,157.49,21.57]
[1723368771604,22.0388,157.57,157.47,22.413774]
[1723368772899,22.0388,157.57,157.48,20.25098]
[1723368773498,22.0388,157.57,157.48,20.0]
[1723368773707,21.57,157.56,157.48,20.0]
[1723368777699,0.97439657,157.55,157.48,20.0]
[1723368778079,0.97439657,157.54,157.48,20.0]
[1723368778803,21.57,157.56,157.48,20.0]
[1723368780895,21.57,157.54,157.48,20.0]
[1723368781097,21.57,157.54,157.47,0.843774]
[1723368781398,6.5448,157.53,157.47,0.843774]
[1723368781705,21.57,157.49,157.36,259.7]
[1723368782018,6.5448,157.46,157.37,21.57]
[1723368782379,0.97439657,157.45,157.37,21.57]
[1723368783307,21.57,157.45,157.34,5.99798494]
[1723368783505,21.57,157.45,157.32,9.03560386]
[1723368783506,21.57,157.43,157.32,0.843774]
[1723368783707,0.97439657,157.42,157.32,22.413774]
[1723368784107,22.54439657,157.43,157.34,21.57]
[1723368784420,0.97439657,157.42,157.34,21.57]
[1723368784616,0.12549,157.39,157.32,0.843774]
[1723368784785,68.04635657,157.39,157.32,0.843774]
[1723368785689,67.07196,157.39,157.32,0.843774]
[1723368785900,15.2669,157.4,157.32,0.843774]
[1723368786398,67.79537657,157.39,157.32,0.843774]
[1723368786794,46.22537657,157.39,157.32,0.843774]
[1723368787001,45.97439657,157.39,157.32,0.843774]
[1723368787199,28.04959,157.38,157.32,0.843774]
[1723368787397,6.5448,157.37,157.32,0.843774]
[1723368788111,0.97439657,157.36,157.32,0.843774]
[1723368788483,16.24129657,157.35,157.26,21.57]
[1723368788685,15.2669,157.35,157.26,21.57]
[1723368788920,21.57,157.34,157.24,21.57]
[1723368789285,21.57,157.3,157.16,0.843774]
[1723368789491,21.8117,157.32,157.27,21.57]
[1723368790715,21.8117,157.32,157.28,20.12549]
[1723368790915,15.2669,157.32,157.3,0.12549]
[1723368791225,15.2669,157.32,157.3,20.0]
[1723368793729,21.8117,157.36,157.3,20.0]
[1723368794692,21.8117,157.36,157.31,21.57]
[1723368794891,21.8117,157.36,157.3,20.0]
[1723368795809,21.8117,157.36,157.28,20.0]
[1723368796705,21.8117,157.36,157.29,21.69549]
[1723368796902,21.8117,157.36,157.31,21.57]
[1723368797219,21.8117,157.36,157.32,20.0]
[1723368797408,21.8117,157.36,157.29,21.69549]
[1723368797586,21.8117,157.36,157.19,6.0567]
[1723368797587,21.8117,157.36,157.27,21.57]
[1723368797788,0.97439657,157.35,157.26,0.12549]
[1723368797991,22.54439657,157.35,157.24,21.57]
[1723368798221,0.97439657,157.34,157.26,21.57]
[1723368798620,21.8117,157.36,157.28,21.57]
[1723368799033,0.97439657,157.35,157.21,1.10679237]
[1723368799228,0.97439657,157.35,157.27,21.57]
[1723368799407,22.78609657,157.36,157.28,0.25098]
[1723368799610,21.8117,157.36,157.29,21.57]
[1723368799824,21.8117,157.36,157.3,20.0]
[1723368800204,21.8117,157.36,157.33,21.57]
[1723368800405,15.2669,157.36,157.33,21.57]
[1723368800709,15.2669,157.36,157.34,20.0]
[1723368801621,15.2669,157.36,157.31,21.57]
[1723368801822,15.2669,157.36,157.3,0.12549]
[1723368802131,15.2669,157.36,157.31,21.57]
[1723368802314,15.2669,157.36,157.32,20.0]
[1723368803338,15.2669,157.36,157.22,6.0527458]
[1723368803640,15.2669,157.36,157.28,21.57]
[1723368804011,6.35,157.35,157.26,21.57]
[1723368805436,7.32439657,157.35,157.26,21.57]
[1723368805815,6.35,157.35,157.26,21.57]
[1723368806014,28.89439657,157.35,157.27,20.0]
[1723368806333,45.12549,157.34,157.27,20.0]
[1723368806536,0.97439657,157.33,157.25,20.0]
[1723368806738,16.0121,157.31,157.24,21.57]
[1723368806910,0.97439657,157.3,157.24,21.57]
[1723368807231,0.97439657,157.29,157.24,21.57]
[1723368807436,0.97439657,157.29,157.22,21.57]
[1723368807643,0.97439657,157.28,157.22,21.57]
[1723368807824,0.97439657,157.28,157.2,21.57]
[1723368808314,6.35,157.29,157.22,21.57]